fUSD/lending_fUSD_20251212
["ID","MTS","AMOUNT","RATE_DAILY","PERIOD"]
[398301757,1765512631907,-258.29794265,0.00017989,2]
[398301759,1765512631916,-1000.0,0.00017998,3]
[398301761,1765512631925,-1028.06955985,0.00017999,5]
[398301763,1765512631935,-1028.06955986,0.00017999,5]
[398301765,1765512631944,-500.0,0.00017999,2]
[398301767,1765512631954,-500.0,0.00017999,2]
[398301769,1765512631963,-500.0,0.00017999,2]
[398301771,1765512631972,-500.0,0.00017999,2]
[398301772,1765512631981,-620.1424577,0.00017999,2]
[398301773,1765512631991,-607.13,0.00017999,2]
[398301774,1765512632000,-607.13,0.00017999,2]
[398301775,1765512632010,-607.13,0.00017999,2]
[398301776,1765512632020,-607.13,0.00017999,2]
[398301777,1765512632030,-607.13,0.00017999,2]
[398301778,1765512632039,-500.0,0.00017999,2]
[398301779,1765512632048,-500.0,0.00017999,2]
[398301780,1765512632058,-500.0,0.00017999,2]
[398301781,1765512632067,-500.0,0.00017999,2]
[398301782,1765512632077,-500.0,0.00017999,2]
[398301783,1765512632087,-300.0,0.00017999,2]
[398301784,1765512632097,-500.0,0.00017999,2]
[398301785,1765512632106,-500.0,0.00017999,2]
[398301786,1765512632116,-500.0,0.00017999,2]
[398301787,1765512632125,-500.0,0.00017999,2]
[398301788,1765512632134,-500.0,0.00017999,2]
[398301789,1765512632143,-305.54534749,0.00017999,2]
[398301790,1765512632153,-201.83496145,0.00017999,2]
[398301791,1765512632162,-676.51,0.00017999,2]
[398301792,1765512632171,-200.0,0.00017999,5]
[398301793,1765512632181,-200.97555689,0.00017999,5]
[398301794,1765512632190,-150.0,0.00017999,5]
[398301795,1765512632199,-200.0,0.00017999,5]
[398301796,1765512632208,-300.0,0.00017999,2]
[398301797,1765512632217,-666.0,0.00017999,2]
[398301798,1765512632227,-1000.0,0.00017999,2]
[398301799,1765512632236,-300.0,0.00017999,2]
[398301800,1765512632245,-150.0,0.00017999,5]
[398301801,1765512632254,-221.70937558,0.00017999,5]
[398301802,1765512632267,-150.0,0.00017999,5]
[398301803,1765512632276,-150.0,0.00017999,2]
[398301804,1765512632285,-234.35368219,0.00017999,5]
[398301805,1765512632295,-500.0,0.00017999,5]
[398301806,1765512632304,-572.94029346,0.00017999,2]
[398301807,1765512632314,-169.9144292,0.00017999,2]
[398301808,1765512632323,-23020.83963734,0.00018,2]
[398301809,1765512632335,-504.83378329,0.00018,2]
[398301810,1765512632349,-572.47843085,0.00018,2]
[398301812,1765512637757,-500.0,0.00017998,2]
[398301813,1765512637767,-321.0,0.00017998,2]
[398301814,1765512637811,-179.0,0.00017998,2]
[398301815,1765512637820,-500.0,0.00017998,2]
[398301816,1765512637829,-500.0,0.00017998,2]
[398301817,1765512637839,-407.89963769,0.00017998,2]
[398301818,1765512637848,-500.0,0.00017998,2]
[398301819,1765512637857,-500.0,0.00017998,2]
[398301820,1765512637866,-500.0,0.00017998,2]
[398301822,1765512637875,-500.0,0.00017998,2]
[398301824,1765512637884,-500.0,0.00017998,2]
[398301826,1765512637893,-500.0,0.00017998,2]
[398301828,1765512637902,-500.0,0.00017998,2]
[398301830,1765512637912,-500.0,0.00017998,2]
[398301832,1765512637921,-500.0,0.00017998,2]
[398301833,1765512637930,-500.0,0.00017998,2]
[398301834,1765512637939,-500.0,0.00017998,2]
[398301835,1765512637948,-500.0,0.00017998,2]
[398301836,1765512637957,-582.82740183,0.00017998,2]
[398301837,1765512637966,-9543.19935988,0.00018,2]
[398301850,1765512639700,-4355.85,0.00018,2]
[398301851,1765512639755,-5406.50649121,0.00018,2]
[398301856,1765512642553,-25981.31607109,0.00018,2]
[398301860,1765512642608,-662.76,0.00018,2]
[398301861,1765512642818,-302.05042645,0.00018,2]
[398301865,1765512645543,-16804.09074715,0.00018,2]
[398301866,1765512645752,-1008.24074895,0.00018,2]
[398301869,1765512979550,376.67,0.00013699,2]
[398301876,1765513337878,225.01,0.00015,21]
[398301882,1765513720948,608.0,0.000202,30]
[398301885,1765513742157,1000.0,0.00014999,3]
[398301887,1765513818967,354.0,0.00019574,120]
[398301888,1765513820249,354.0,0.00020552,120]
[398301889,1765513821876,354.0,0.0002158,120]
[398301890,1765513823192,354.0,0.00022659,120]
[398301891,1765513825702,354.0,0.00023792,120]
[398301892,1765513826137,354.0,0.00024982,120]
[398301906,1765513831731,-3258.55641995,0.000162,5]
[398301907,1765513831741,-2492.24,0.00016438,2]
[398301908,1765513831751,-999.0,0.00017181,3]
[398301909,1765513831759,-150.9,0.00017215,2]
[398301910,1765513831768,-151.0,0.0001726,2]
[398301911,1765513831778,-152.74,0.0001726,2]
[398301912,1765513831787,-150.0,0.00017282,2]
[398301913,1765513831796,-200.0,0.0001731,2]
[398301914,1765513831806,-562.78224409,0.0001764,2]
[398301915,1765513831815,-403.0,0.000177,5]
[398301916,1765513831824,-325.36868765,0.000177,2]
[398301943,1765513837844,-166.66,0.00016437,2]
[398301944,1765513837854,-104.9414817,0.00016783,2]
[398301945,1765513837957,-61.7185183,0.00016783,2]
[398301946,1765513837967,-166.66,0.00017129,2]
[398301947,1765513837976,-206.6364822,0.000177,2]
[398301948,1765513837990,-475.99483015,0.000177,2]
[398301949,1765513838000,-300.0,0.00017755,2]
[398301950,1765513838010,-1518.0,0.00017756,2]
[398301951,1765513838021,-1007.94156949,0.000178,2]
[398301952,1765513838031,-166.04,0.00017808,2]
[398301953,1765513838041,-855.91,0.00017823,2]
[398301954,1765513838050,-1238.455,0.00017899,2]
[398301955,1765513838061,-300.0,0.00017899,2]
[398301956,1765513838070,-2566.24481818,0.000179,2]
[398301958,1765513838079,-3953.42286778,0.000179,2]
[398301971,1765513839845,-166.66,0.00017475,2]
[398301972,1765513839854,-166.66,0.00017821,2]
[398301973,1765513839864,-728.54194758,0.000179,2]
[398301974,1765513839903,-2859.88288406,0.000179,2]
[398301975,1765513839914,-993.0539813,0.000179,2]
[398301976,1765513839924,-561.69782174,0.000179,2]
[398301977,1765513839959,-841.0,0.000179,2]
[398301978,1765513840017,-62.41049754,0.000179,2]
[398301979,1765513840026,-1025.40108226,0.000179,2]
[398301980,1765513840075,-1474.59891774,0.000179,2]
[398301981,1765513840084,-615.41848575,0.00017967,2]
[398301982,1765513840094,-500.0,0.00017967,2]
[398301983,1765513840104,-500.0,0.00017967,2]
[398301984,1765513840113,-500.0,0.00017967,2]
[398301985,1765513840123,-500.0,0.00017967,2]
[398301986,1765513840132,-500.0,0.00017967,2]
[398301987,1765513840142,-500.0,0.00017967,2]
[398301988,1765513840151,-500.0,0.00017967,2]
[398301989,1765513840160,-388.08279216,0.00017967,2]
[398301990,1765513840169,-500.0,0.00017967,2]
[398301991,1765513840179,-500.0,0.00017967,2]
[398301992,1765513840188,-500.0,0.00017967,2]
[398301993,1765513840198,-500.0,0.00017967,2]
[398301994,1765513840207,-500.0,0.00017967,2]
[398301995,1765513840217,-500.0,0.00017967,2]
[398301996,1765513840226,-500.0,0.00017967,2]
[398301997,1765513840236,-500.0,0.00017967,2]
[398301999,1765513840245,-500.0,0.00017967,2]
[398302001,1765513840254,-500.0,0.00017967,2]
[398302002,1765513840263,-500.0,0.00017967,2]
[398302003,1765513840273,-500.0,0.00017967,2]
[398302004,1765513840282,-500.0,0.00017967,2]
[398302005,1765513840291,-500.0,0.00017967,2]
[398302007,1765513840300,-500.0,0.00017967,2]
[398302008,1765513840310,-256.76926737,0.00017967,2]
[398302010,1765513840319,-500.0,0.00017967,2]
[398302012,1765513840328,-500.0,0.00017967,2]
[398302013,1765513840338,-500.0,0.00017967,2]
[398302014,1765513840348,-500.0,0.00017967,2]
[398302016,1765513840357,-500.0,0.00017967,2]
[398302018,1765513840366,-500.0,0.00017967,2]
[398302019,1765513840375,-500.0,0.00017967,2]
[398302020,1765513840384,-500.0,0.00017967,2]
[398302021,1765513840393,-500.0,0.00017967,2]
[398302022,1765513840403,-500.0,0.00017967,2]
[398302023,1765513840412,-500.0,0.00017967,2]
[398302024,1765513840421,-500.0,0.00017967,2]
[398302025,1765513840430,-500.0,0.00017967,2]
[398302026,1765513840440,-500.0,0.00017967,2]
[398302027,1765513840449,-500.0,0.00017967,2]
[398302028,1765513840458,-500.0,0.00017967,2]
[398302029,1765513840467,-1002.7004255,0.0001797,2]
[398302030,1765513840476,-993.61915075,0.0001797,2]
[398302031,1765513840485,-238.107202,0.00017989,2]
[398302032,1765513840494,-1000.0,0.00017997,3]
[398302033,1765513840503,-1000.0,0.00017998,3]
[398302034,1765513840513,-500.0,0.00017999,2]
[398302035,1765513840523,-480.51,0.00017999,2]
[398302036,1765513840532,-532.0145937,0.00017999,2]
[398302037,1765513840541,-500.0,0.00017999,2]
[398302038,1765513840550,-546.23,0.00017999,2]
[398302039,1765513840560,-504.03,0.00017999,2]
[398302040,1765513840569,-500.0,0.00017999,2]
[398302041,1765513840578,-504.49999514,0.00017999,2]
[398302042,1765513840587,-500.0,0.00017999,2]
[398302043,1765513840595,-506.49951355,0.00017999,2]
[398302044,1765513840604,-566.15626175,0.00017999,2]
[398302045,1765513840613,-500.0,0.00017999,2]
[398302046,1765513840622,-500.0,0.00017999,2]
[398302047,1765513840631,-500.0,0.00017999,2]
[398302048,1765513840640,-500.0,0.00017999,2]
[398302049,1765513840649,-500.0,0.00017999,2]
[398302050,1765513840658,-500.0,0.00017999,2]
[398302051,1765513840667,-500.0,0.00017999,2]
[398302052,1765513840676,-506.25786618,0.00017999,2]
[398302053,1765513840685,-1000.0,0.00017999,2]
[398302054,1765513840694,-330.82913762,0.00017999,2]
[398302055,1765513840703,-99220.84177688,0.00018,2]
[398302056,1765513840715,-47565.92232909,0.00018,2]
[398302061,1765513842830,-844.21096272,0.00018,2]
[398302062,1765513842842,-333.44283979,0.00018,2]
[398302063,1765513842853,-6742.913408,0.00018,2]
[398302067,1765513845766,-3078.46731386,0.00018,2]
[398302068,1765513845777,-2880.64335841,0.00018,2]
[398302069,1765513845928,-2119.05253193,0.00018,2]
[398302070,1765513846039,-924.51,0.00018,2]
[398302076,1765514258601,-250.0,0.00017,2]
[398302077,1765514258625,-164.77840951,0.0001754,2]
[398302078,1765514258649,-375.18816272,0.0001764,2]
[398302079,1765514258674,-513.92,0.00017729,2]
[398302080,1765514258699,-200.0,0.00017803,2]
[398302081,1765514258723,-990.764,0.00017897,2]
[398302082,1765514259064,-300.0,0.00017899,2]
[398302083,1765514259093,-28414.6414,0.000179,2]
[398302084,1765514259118,-2049.99,0.000179,2]
[398302085,1765514259149,-1129.24907829,0.000179,2]
[398302086,1765514259175,-2222.0,0.00017989,2]
[398302087,1765514259201,-299.06442023,0.00017989,2]
[398302088,1765514259225,-170.09876896,0.00017989,2]
[398302089,1765514259251,-500.0,0.00017999,2]
[398302090,1765514259277,-481.33,0.00017999,2]
[398302091,1765514259301,-500.0,0.00017999,2]
[398302092,1765514259324,-500.0,0.00017999,2]
[398302093,1765514259349,-500.0,0.00017999,2]
[398302094,1765514259376,-598.6758658,0.00017999,2]
[398302095,1765514259398,-500.0,0.00017999,2]
[398302096,1765514259423,-500.0,0.00017999,2]
[398302097,1765514259447,-500.0,0.00017999,2]
[398302098,1765514259472,-425.67692674,0.00017999,2]
[398302099,1765514259496,-500.0,0.00017999,2]
[398302100,1765514259520,-430.0,0.00017999,2]
[398302101,1765514259545,-158.40854741,0.00017999,2]
[398302102,1765514259570,-519448.04026385,0.00018,2]
[398302103,1765514259594,-1184.43805838,0.00018,2]
[398302104,1765514259618,-160.27178382,0.00018,2]
[398302105,1765514259642,-1645.24,0.00018,2]
[398302106,1765514259666,-200.0,0.00018,2]
[398302107,1765514259690,-1969.2626605,0.00018,2]
[398302108,1765514259714,-2362.48234,0.00018,2]
[398302109,1765514263387,250.12544182,0.0001764,2]
[398302110,1765514272229,613.139,0.00018,2]
[398302111,1765514288968,2500.0,0.000179,2]
[398302112,1765514290693,2300.4304551,0.00017995,2]
[398302117,1765514307515,201.68342,0.00018,2]
[398302118,1765514310154,500.0,0.00017999,2]
[398302119,1765514310400,500.0,0.00017999,2]
[398302120,1765514332671,2000.0,0.00018,2]
[398302121,1765514332966,2000.0,0.00018,2]
[398302122,1765514333495,500.0,0.00017999,2]
[398302123,1765514350268,1968.73528,0.00018,2]
[398302124,1765514393011,201.6834296,0.00018,2]
[398302125,1765514435805,1320.68228727,0.00018,2]
[398302129,1765515031911,-999.0,0.00017699,3]
[398302130,1765515031966,-1.0,0.00017699,3]
[398302131,1765515031976,-250.0,0.0001788,2]
[398302132,1765515031985,-64.58304838,0.00017922,2]
[398302133,1765515031996,-94.92695162,0.00017922,2]
[398302134,1765515032006,-589.48,0.00017997,3]
[398302167,1765515039974,-410.52,0.00017997,3]
[398302169,1765515039983,-510.82677373,0.00017999,2]
[398302171,1765515039993,-96.28451228,0.00017999,2]
[398302173,1765515040004,-903.71548772,0.00017999,2]
[398302175,1765515040014,-1420.49902,0.00018,2]
[398302177,1765515040023,-2222.0,0.00018089,2]
[398302179,1765515040032,-300.0,0.00018099,2]
[398302181,1765515040041,-1770.2821317,0.000181,2]
[398302183,1765515040051,-166.75029454,0.000181,2]
[398302185,1765515040060,-166.66,0.00018167,2]
[398302187,1765515040069,-1833.0,0.00018273,2]
[398302189,1765515040078,-1000.0,0.00018323,2]
[398302191,1765515040088,-295.85299193,0.00018323,2]
[398302192,1765515040099,-500.0,0.00018323,2]
[398302193,1765515040110,-204.14700807,0.00018323,2]
[398302194,1765515040119,-453.00748339,0.0001845,3]
[398302195,1765515040130,-415.41937725,0.0001845,3]
[398302196,1765515040141,-4131.56313936,0.0001845,3]
[398302197,1765515040150,-480.92749245,0.00018472,2]
[398302198,1765515040159,-1833.0,0.00018567,2]
[398302199,1765515040168,-298.0,0.000186,2]
[398302200,1765515040178,-973.0,0.000186,2]
[398302201,1765515040187,-304.0,0.000186,2]
[398302202,1765515040196,-523.0,0.000186,2]
[398302203,1765515040206,-503.80377519,0.00018632,2]
[398302204,1765515040215,-2222.0,0.00018637,2]
[398302205,1765515040225,-792.611,0.00018757,2]
[398302206,1765515040234,-500.0,0.00018757,3]
[398302207,1765515040243,-500.71593728,0.000188,2]
[398302208,1765515040252,-299.9620005,0.000188,2]
[398302209,1765515040261,-150.0,0.000188,2]
[398302210,1765515040271,-500.0,0.000188,2]
[398302211,1765515040280,-502.28709698,0.000188,2]
[398302212,1765515040289,-200.0,0.000188,2]
[398302213,1765515040298,-150.0,0.000188,2]
[398302214,1765515040308,-500.0,0.000188,2]
[398302215,1765515040318,-150.0,0.000188,2]
[398302216,1765515040327,-500.0,0.000188,2]
[398302217,1765515040336,-500.0,0.000188,2]
[398302218,1765515040346,-500.0,0.000188,2]
[398302219,1765515040367,-559.78591393,0.000188,2]
[398302220,1765515040376,-535.55046793,0.000188,2]
[398302221,1765515040385,-172.29211517,0.000188,2]
[398302222,1765515040395,-250.28901527,0.000188,2]
[398302223,1765515040404,-500.0,0.000188,2]
[398302224,1765515040414,-501.63921203,0.000188,2]
[398302225,1765515040423,-500.82080589,0.000188,2]
[398302226,1765515040433,-1509.0,0.000188,2]
[398302227,1765515040442,-500.0,0.000188,2]
[398302228,1765515040452,-500.0,0.000188,2]
[398302229,1765515040461,-500.0,0.000188,2]
[398302230,1765515040471,-500.0,0.000188,2]
[398302231,1765515040481,-500.0,0.000188,2]
[398302232,1765515040490,-500.0,0.000188,2]
[398302233,1765515040499,-500.0,0.000188,2]
[398302234,1765515040508,-501.15847819,0.000188,2]
[398302235,1765515040517,-563.76,0.000188,2]
[398302236,1765515040527,-500.0,0.000188,2]
[398302237,1765515040536,-515.27655994,0.000188,2]
[398302238,1765515040546,-500.0,0.000188,2]
[398302239,1765515040555,-500.0,0.000188,2]
[398302240,1765515040565,-500.0,0.000188,2]
[398302241,1765515040574,-150.0,0.000188,2]
[398302242,1765515040584,-315.08379937,0.000188,2]
[398302243,1765515040593,-150.0,0.000188,2]
[398302244,1765515040602,-500.0,0.000188,2]
[398302245,1765515040612,-192.083485,0.000188,2]
[398302246,1765515040621,-150.0,0.000188,2]
[398302247,1765515040632,-500.0,0.000188,2]
[398302248,1765515040644,-150.0,0.000188,2]
[398302249,1765515040654,-207.32829514,0.000188,2]
[398302250,1765515040663,-500.0,0.000188,2]
[398302251,1765515040672,-270.0,0.00018801,2]
[398302252,1765515040682,-1826.98562404,0.00018802,2]
[398302253,1765515040692,-607.13,0.0001882,2]
[398302254,1765515040700,-387.48,0.0001889,2]
[398302255,1765515040711,-500.0,0.00018899,2]
[398302256,1765515040720,-500.0,0.00018899,2]
[398302257,1765515040730,-500.0,0.00018899,2]
[398302258,1765515040739,-500.0,0.00018899,2]
[398302259,1765515040748,-500.0,0.00018899,2]
[398302260,1765515040757,-500.0,0.00018899,2]
[398302261,1765515040766,-500.0,0.00018899,2]
[398302262,1765515040775,-500.0,0.00018899,2]
[398302263,1765515040784,-500.0,0.00018899,2]
[398302264,1765515040794,-500.0,0.00018899,2]
[398302265,1765515040803,-500.0,0.00018899,2]
[398302266,1765515040812,-632.63860175,0.00018899,2]
[398302267,1765515040822,-192.66181131,0.00018899,2]
[398302268,1765515041162,-210.95285039,0.00018899,2]
[398302269,1765515041172,-60996.52991165,0.000189,2]
[398302270,1765515041183,-12695.12400364,0.000189,2]
[398302271,1765515041195,-325.929999,0.000189,2]
[398302272,1765515041206,-290.65933611,0.000189,2]
[398302273,1765515041217,-2022.64529575,0.000189,2]
[398302274,1765515041232,-25939.16536848,0.000189,2]
[398302275,1765515041250,-103047.52288537,0.000189,2]
[398302276,1765515041260,-156.95,0.00018902,2]
[398302277,1765515041269,-295.87414259,0.00018914,2]
[398302278,1765515041278,-1002.25818618,0.00018936,2]
[398302279,1765515041287,-150.0,0.00018937,2]
[398302280,1765515041297,-150.0,0.00018937,2]
[398302281,1765515041306,-500.0,0.00018937,2]
[398302282,1765515041316,-150.0,0.00018937,2]
[398302283,1765515041325,-1509.0,0.00018937,2]
[398302284,1765515041334,-150.0,0.00018937,2]
[398302285,1765515041343,-636.29411008,0.00018937,2]
[398302286,1765515041352,-500.0,0.00018937,2]
[398302287,1765515041362,-169.0,0.00018954,2]
[398302288,1765515041371,-500.0,0.00018999,2]
[398302289,1765515041381,-5539.02048763,0.00019,3]
[398302290,1765515041390,-500.0,0.00019,7]
[398302291,1765515041399,-500.0,0.00019,7]
[398302292,1765515041408,-500.0,0.00019,7]
[398302293,1765515041418,-500.0,0.00019,7]
[398302294,1765515041427,-500.0,0.00019,7]
[398302295,1765515041436,-500.0,0.00019,7]
[398302296,1765515041445,-500.0,0.00019,7]
[398302297,1765515041455,-500.0,0.00019,7]
[398302298,1765515041464,-500.0,0.00019,7]
[398302299,1765515041473,-500.0,0.00019,7]
[398302300,1765515041482,-500.0,0.00019,7]
[398302301,1765515041491,-500.0,0.00019,7]
[398302302,1765515041500,-500.0,0.00019,7]
[398302303,1765515041509,-500.0,0.00019,7]
[398302304,1765515041519,-500.0,0.00019,7]
[398302305,1765515041528,-500.0,0.00019,7]
[398302306,1765515041537,-500.0,0.00019,7]
[398302307,1765515041546,-500.0,0.00019,7]
[398302308,1765515041556,-500.0,0.00019,7]
[398302309,1765515041565,-500.0,0.00019,7]
[398302310,1765515041574,-500.0,0.00019,7]
[398302311,1765515041583,-500.0,0.00019,7]
[398302312,1765515041592,-500.0,0.00019,7]
[398302313,1765515041601,-500.0,0.00019,7]
[398302314,1765515041611,-500.0,0.00019,7]
[398302315,1765515041621,-500.0,0.00019,7]
[398302316,1765515041630,-500.0,0.00019,7]
[398302317,1765515041639,-500.0,0.00019,7]
[398302318,1765515041649,-500.0,0.00019,7]
[398302319,1765515041666,-500.0,0.00019,7]
[398302320,1765515041675,-500.0,0.00019,7]
[398302321,1765515041684,-500.0,0.00019,7]
[398302322,1765515041693,-500.0,0.00019,7]
[398302323,1765515041702,-500.0,0.00019,7]
[398302324,1765515041711,-500.0,0.00019,7]
[398302325,1765515041720,-207.38,0.00019,7]
[398302326,1765515041729,-500.0,0.00019,7]
[398302327,1765515041739,-500.0,0.00019,7]
[398302328,1765515041749,-500.0,0.00019,7]
[398302329,1765515041758,-500.0,0.00019,7]
[398302330,1765515041767,-500.0,0.00019,7]
[398302331,1765515041776,-500.0,0.00019,7]
[398302332,1765515041785,-500.0,0.00019,7]
[398302333,1765515041795,-500.0,0.00019,7]
[398302334,1765515041804,-500.0,0.00019,7]
[398302335,1765515041813,-500.0,0.00019,7]
[398302336,1765515041823,-500.0,0.00019,7]
[398302337,1765515041832,-500.0,0.00019,7]
[398302338,1765515041841,-500.0,0.00019,7]
[398302339,1765515041849,-500.0,0.00019,7]
[398302340,1765515041859,-500.0,0.00019,7]
[398302341,1765515041868,-500.0,0.00019,7]
[398302342,1765515041878,-500.0,0.00019,7]
[398302343,1765515041887,-500.0,0.00019,7]
[398302344,1765515041896,-500.0,0.00019,7]
[398302345,1765515041905,-500.0,0.00019,7]
[398302346,1765515041914,-500.0,0.00019,7]
[398302347,1765515041924,-500.0,0.00019,7]
[398302348,1765515041932,-500.0,0.00019,7]
[398302349,1765515041942,-500.0,0.00019,7]
[398302350,1765515041951,-500.0,0.00019,7]
[398302351,1765515041960,-500.0,0.00019,7]
[398302352,1765515041969,-500.0,0.00019,7]
[398302353,1765515041978,-500.0,0.00019,7]
[398302354,1765515041987,-500.0,0.00019,7]
[398302355,1765515041997,-500.0,0.00019,7]
[398302356,1765515042006,-500.0,0.00019,7]
[398302357,1765515042015,-500.0,0.00019,7]
[398302358,1765515042025,-500.0,0.00019,7]
[398302359,1765515042034,-500.0,0.00019,7]
[398302360,1765515042043,-500.0,0.00019,7]
[398302361,1765515042052,-500.0,0.00019,7]
[398302362,1765515042061,-500.0,0.00019,7]
[398302363,1765515042070,-500.0,0.00019,7]
[398302364,1765515042079,-500.0,0.00019,7]
[398302365,1765515042088,-500.0,0.00019,7]
[398302366,1765515042097,-500.0,0.00019,7]
[398302367,1765515042106,-500.0,0.00019,7]
[398302368,1765515042115,-500.0,0.00019,7]
[398302369,1765515042124,-500.0,0.00019,7]
[398302370,1765515042133,-500.0,0.00019,7]
[398302371,1765515042142,-500.0,0.00019,7]
[398302372,1765515042150,-500.0,0.00019,7]
[398302373,1765515042160,-500.0,0.00019,7]
[398302374,1765515042169,-500.0,0.00019,7]
[398302375,1765515042179,-500.0,0.00019,7]
[398302376,1765515042188,-500.0,0.00019,7]
[398302377,1765515042198,-500.0,0.00019,7]
[398302378,1765515042207,-500.0,0.00019,7]
[398302379,1765515042216,-500.0,0.00019,7]
[398302380,1765515042225,-500.0,0.00019,7]
[398302381,1765515042235,-500.0,0.00019,7]
[398302382,1765515042243,-500.0,0.00019,7]
[398302383,1765515042252,-500.0,0.00019,7]
[398302384,1765515042262,-500.0,0.00019,7]
[398302385,1765515042271,-500.0,0.00019,7]
[398302386,1765515042281,-500.0,0.00019,7]
[398302387,1765515042291,-544.72,0.00019,7]
[398302388,1765515042300,-500.0,0.00019,7]
[398302389,1765515042310,-500.0,0.00019,7]
[398302390,1765515042319,-300.0,0.00019,2]
[398302391,1765515042329,-480.92749245,0.00019,7]
[398302392,1765515042339,-480.92749245,0.00019,3]
[398302393,1765515042349,-356.27281289,0.0001901,7]
[398302394,1765515042358,-1000.0,0.0001901,2]
[398302395,1765515042370,-245.63,0.00019052,2]
[398302396,1765515042379,-250.0,0.00019074,2]
[398302397,1765515042389,-150.0,0.00019074,2]
[398302398,1765515042398,-594.05868298,0.00019074,2]
[398302399,1765515042408,-150.0,0.00019074,2]
[398302400,1765515042417,-1509.0,0.00019074,2]
[398302401,1765515042427,-223.01620776,0.00019074,2]
[398302402,1765515042436,-500.0,0.00019074,2]
[398302403,1765515042445,-563.76,0.00019074,2]
[398302404,1765515042455,-200.36231387,0.00019082,2]
[398302405,1765515042465,-855.91,0.00019109,2]
[398302406,1765515042475,-1833.0,0.00019175,2]
[398302407,1765515042485,-500.0,0.00019177,2]
[398302408,1765515042494,-500.0,0.00019177,2]
[398302409,1765515042504,-500.0,0.00019178,2]
[398302410,1765515042513,-151.0,0.00019178,2]
[398302411,1765515042523,-1000.0,0.00019178,2]
[398302412,1765515042533,-294.64018744,0.00019193,2]
[398302413,1765515042542,-150.0,0.00019211,2]
[398302414,1765515042551,-150.0,0.00019211,2]
[398302415,1765515042560,-1509.0,0.00019211,2]
[398302416,1765515042569,-500.0,0.00019211,2]
[398302417,1765515042578,-699.31917076,0.00019219,7]
[398302418,1765515042587,-10000.0,0.00019248,2]
[398302419,1765515042596,-500.0,0.00019315,2]
[398302420,1765515042606,-500.0,0.00019347,2]
[398302421,1765515042615,-501.39773973,0.00019348,2]
[398302422,1765515042624,-150.0,0.00019348,2]
[398302423,1765515042634,-150.0,0.00019348,2]
[398302424,1765515042643,-502.84847849,0.00019348,2]
[398302425,1765515042655,-1000.0,0.00019348,2]
[398302426,1765515042666,-504.42753809,0.00019348,2]
[398302427,1765515042675,-176.2070685,0.00019348,2]
[398302428,1765515042685,-1509.0,0.00019348,2]
[398302429,1765515042694,-1006.29585832,0.00019348,2]
[398302430,1765515042705,-1000.0,0.00019348,2]